bitfinex-derivatives/quotes_BTCF0:USTF0_20250218
["timestamp","ask_amount","ask_price","bid_price","bid_amount"]
[1739878280631,0.2097143,95842.0,95841.0,0.14108316]
[1739878281329,0.2087143,95842.0,95841.0,0.14108316]
[1739878281532,0.2107143,95842.0,95841.0,0.14108316]
[1739878281837,0.2107143,95842.0,95841.0,0.17878316]
[1739878282031,0.2097143,95842.0,95841.0,0.17878316]
[1739878282339,0.2087143,95842.0,95841.0,0.17878316]
[1739878282542,0.0387,95851.0,95841.0,0.17878316]
[1739878282835,0.20884941,95852.0,95851.0,0.2086947]
[1739878283430,0.20884941,95852.0,95851.0,0.2448947]
[1739878283630,0.20884941,95852.0,95851.0,0.2824947]
[1739878284026,0.20884941,95852.0,95851.0,0.0738]
[1739878284527,0.20884941,95852.0,95851.0,0.0362]
[1739878285437,0.21084941,95852.0,95851.0,0.0362]
[1739878285837,0.21184941,95852.0,95851.0,0.0362]
[1739878286331,0.21084941,95852.0,95851.0,0.0362]
[1739878286530,0.21184941,95852.0,95851.0,0.0362]
[1739878286731,0.20984941,95852.0,95851.0,0.0362]
[1739878286931,0.21184941,95852.0,95851.0,0.0362]
[1739878287639,0.21084941,95852.0,95851.0,0.0362]
[1739878287832,0.20984941,95852.0,95851.0,0.0362]
[1739878288441,0.21084941,95852.0,95851.0,0.0362]
[1739878289139,0.20984941,95852.0,95851.0,0.0362]
[1739878289441,0.20984941,95852.0,95851.0,0.2448947]
[1739878290130,0.20884941,95852.0,95851.0,0.2448947]
[1739878290841,0.20984941,95852.0,95851.0,0.2448947]
[1739878294130,0.21084941,95852.0,95851.0,0.2448947]
[1739878297348,0.20984941,95852.0,95851.0,0.2448947]
[1739878297549,0.21084941,95852.0,95851.0,0.2448947]
[1739878298445,0.20984941,95852.0,95851.0,0.2448947]
[1739878298644,0.21084941,95852.0,95851.0,0.2448947]
[1739878300558,0.20984941,95852.0,95851.0,0.22040524]
[1739878300845,0.21084941,95852.0,95851.0,0.2086947]
[1739878301247,0.20984941,95852.0,95851.0,0.2086947]
[1739878302261,0.20884941,95852.0,95851.0,0.2086947]
[1739878302458,0.20984941,95852.0,95851.0,0.2086947]
[1739878303158,0.21084941,95852.0,95851.0,0.2086947]
[1739878306863,0.20984941,95852.0,95851.0,0.2086947]
[1739878307064,0.21084941,95852.0,95851.0,0.2086947]
[1739878307465,0.20884941,95852.0,95851.0,0.2086947]
[1739878307665,0.21084941,95852.0,95851.0,0.2086947]
[1739878308161,0.20984941,95852.0,95851.0,0.2086947]
[1739878309857,0.20884941,95852.0,95851.0,0.2086947]
[1739878310163,0.20984941,95852.0,95851.0,0.2086947]
[1739878310361,0.21084941,95852.0,95851.0,0.2086947]
[1739878311263,0.20984941,95852.0,95851.0,0.2086947]
[1739878313164,0.20884941,95852.0,95851.0,0.2086947]
[1739878313365,0.21084941,95852.0,95851.0,0.2086947]
[1739878316460,0.20984941,95852.0,95851.0,0.2086947]
[1739878316967,0.21084941,95852.0,95851.0,0.2086947]
[1739878317568,0.20984941,95852.0,95851.0,0.2096947]
[1739878317965,0.20984941,95852.0,95851.0,0.2086947]
[1739878318868,0.20884941,95852.0,95851.0,0.2086947]
[1739878319070,0.20884941,95852.0,95851.0,0.2096947]
[1739878319767,0.20984941,95852.0,95851.0,0.2086947]
[1739878321469,0.20884941,95852.0,95851.0,0.2086947]
[1739878321670,0.20884941,95852.0,95851.0,0.2096947]
[1739878322461,0.20884941,95852.0,95851.0,0.2086947]
[1739878322770,0.20884941,95852.0,95851.0,0.2096947]
[1739878323275,0.20884941,95852.0,95851.0,0.2106947]
[1739878324366,0.00015621,95852.0,95851.0,0.2096947]
[1739878324770,0.00015621,95852.0,95851.0,0.2438947]
[1739878326067,0.0366,95862.0,95861.0,0.2086729]
[1739878326369,0.0366,95862.0,95861.0,0.5694729]
[1739878326664,0.2452707,95862.0,95861.0,0.5694729]
[1739878327372,0.2462707,95862.0,95861.0,0.5694729]
[1739878327565,0.2818707,95862.0,95861.0,0.5694729]
[1739878328872,0.2848707,95862.0,95861.0,0.51252562]
[1739878329263,0.2848707,95862.0,95861.0,0.52587179]
[1739878334270,0.0396,95862.0,95861.0,0.52587179]
[1739878334761,0.2482707,95862.0,95861.0,0.52587179]
[1739878337262,0.2857707,95862.0,95861.0,0.52587179]
[1739878341674,0.2857707,95862.0,95861.0,0.52587179]
[1739878346176,0.2857707,95862.0,95861.0,0.16507179]
[1739878347777,0.0771,95862.0,95861.0,0.16507179]
[1739878350980,0.0415,95862.0,95861.0,0.16507179]
[1739878353277,0.004,95862.0,95861.0,0.16507179]
[1739878356582,0.004,95862.0,95861.0,0.13772462]
[1739878373106,0.001,95862.0,95861.0,0.14072462]
[1739878373285,0.2086629,95866.0,95865.0,0.2086642]
[1739878374082,0.2086707,95862.0,95861.0,0.01834617]
[1739878374590,0.2086707,95862.0,95861.0,0.01634617]
[1739878375893,0.2086707,95862.0,95861.0,0.01334617]
[1739878376081,0.2086707,95862.0,95861.0,0.002]
[1739878376282,0.2096707,95862.0,95861.0,0.002]
[1739878376888,0.2086751,95860.0,95859.0,0.3608]
[1739878377491,0.2086795,95858.0,95857.0,0.16579698]
[1739878378393,0.2086795,95858.0,95857.0,0.17859509]
[1739878378997,0.2086795,95858.0,95857.0,0.38727669]
[1739878379299,0.2106795,95858.0,95857.0,0.38727669]
[1739878379696,0.2116795,95858.0,95857.0,0.38727669]
[1739878380098,0.2106795,95858.0,95857.0,0.38727669]
[1739878380398,0.2116795,95858.0,95857.0,0.38727669]
[1739878381699,0.2096795,95858.0,95857.0,0.38727669]
[1739878382000,0.2116795,95858.0,95857.0,0.38727669]
[1739878384896,0.2116795,95858.0,95857.0,0.22147971]
[1739878385391,0.2096795,95858.0,95857.0,0.22147971]
[1739878385591,0.2116795,95858.0,95857.0,0.22147971]
[1739878386191,0.2096795,95858.0,95857.0,0.22147971]
[1739878386499,0.2116795,95858.0,95857.0,0.22147971]
[1739878391203,0.2096795,95858.0,95857.0,0.22147971]
[1739878391410,0.2116795,95858.0,95857.0,0.22147971]
[1739878397406,0.003,95858.0,95857.0,0.22147971]
[1739878397603,0.003,95858.0,95857.0,0.25557971]
[1739878397808,0.003,95858.0,95857.0,0.29037971]
[1739878399000,0.002,95858.0,95857.0,0.29037971]
[1739878399312,0.003,95858.0,95857.0,0.29037971]
[1739878401509,0.001,95858.0,95857.0,0.29037971]
[1739878401699,0.003,95858.0,95857.0,0.29037971]
[1739878402698,0.001,95858.0,95857.0,0.29037971]
[1739878403906,0.0051637,95870.0,95869.0,0.2086555]
[1739878404613,0.0051637,95870.0,95869.0,0.2796555]
[1739878405201,0.0111637,95870.0,95869.0,0.2806555]
[1739878407416,0.006,95870.0,95869.0,0.2806555]
[1739878414111,0.0367,95881.0,95869.0,0.072]
[1739878414408,0.00156494,95882.0,95881.0,0.2086294]
[1739878416419,0.00156494,95882.0,95881.0,0.2096294]
[1739878416607,0.00156494,95882.0,95881.0,0.2106294]
[1739878418518,0.00156494,95882.0,95881.0,0.2096294]
[1739878418912,0.00156494,95882.0,95881.0,0.2086294]
[1739878422420,0.03626494,95882.0,95881.0,0.2086294]
[1739878431927,0.0347,95882.0,95881.0,0.2086294]
[1739878433530,0.09935385,95888.0,95887.0,0.2086163]
[1739878434530,0.09935385,95888.0,95887.0,0.22117785]
[1739878437630,0.10466186,95888.0,95887.0,0.22117785]
[1739878437831,0.00530801,95888.0,95887.0,0.22117785]
[1739878439331,0.21392221,95888.0,95887.0,0.22117785]
[1739878442334,0.21392221,95888.0,95887.0,0.01256155]
[1739878442533,0.21392221,95888.0,95887.0,0.2086163]
[1739878442834,0.2086257,95883.0,95882.0,0.208624]
[1739878443237,0.2086316,95880.0,95879.0,0.2424325]
[1739878443447,0.2086316,95880.0,95879.0,0.25482043]
[1739878444434,0.2419316,95880.0,95879.0,0.25482043]
[1739878444830,0.2419316,95880.0,95879.0,0.25482163]
[1739878452433,0.2086316,95880.0,95879.0,0.25482163]
[1739878452632,0.2086296,95885.0,95884.0,0.2086185]
[1739878453828,0.2086316,95881.0,95880.0,0.2086309]
[1739878465545,0.2086316,95881.0,95880.0,0.17961337]
[1739878468250,0.2086316,95881.0,95880.0,0.18061337]
[1739878469751,0.2086316,95881.0,95880.0,0.17961337]
[1739878498068,0.2086316,95880.0,95879.0,0.04618793]
[1739878499672,0.2086316,95880.0,95879.0,0.25482163]
[1739878501063,0.2086316,95880.0,95879.0,0.42812163]
[1739878501263,0.2086316,95880.0,95879.0,0.25482163]
[1739878502072,0.2086316,95880.0,95879.0,0.04618793]
[1739878502668,0.2086316,95880.0,95879.0,0.25482163]
[1739878504263,0.2086264,95884.0,95883.0,0.2086211]
[1739878508779,0.11310801,95888.0,95883.0,0.2086211]
[1739878509077,0.2086264,95884.0,95883.0,0.2086211]
[1739878509977,0.2086316,95880.0,95879.0,0.04618793]
[1739878512378,0.2086316,95880.0,95879.0,0.01238793]
[1739878512579,0.2086577,95868.0,95857.0,0.00068]
[1739878512784,0.2086577,95868.0,95852.0,0.3608]
[1739878512785,0.208686,95855.0,95854.0,0.0342]
[1739878512977,0.0521653,95867.0,95852.0,0.3608]
[1739878512978,0.2086903,95853.0,95852.0,0.3608]
[1739878513283,0.2086903,95853.0,95852.0,0.37242253]
[1739878513678,0.0705,95854.0,95852.0,0.37242253]
[1739878513679,0.0349,95854.0,95852.0,0.37242253]
[1739878513882,0.0349,95854.0,95853.0,0.2086903]
[1739878514078,0.00015649,95862.0,95853.0,0.0364]
[1739878514380,0.00015649,95862.0,95854.0,0.0426]
[1739878514583,0.00015649,95862.0,95861.0,0.2086729]
[1739878514772,0.20882719,95862.0,95861.0,0.2086729]
[1739878515584,0.00015649,95862.0,95855.0,0.0339]
[1739878515782,0.00015649,95862.0,95855.0,0.2086842]
[1739878516080,0.2086838,95856.0,95855.0,0.2086842]
[1739878516385,0.208686,95855.0,95854.0,0.0376]
[1739878516981,0.2086903,95853.0,95852.0,0.37242253]
[1739878518677,0.2086903,95853.0,95852.0,0.37442253]
[1739878518876,0.2086903,95853.0,95852.0,0.58311503]
[1739878523681,0.2086903,95853.0,95852.0,0.58211503]
[1739878523990,0.2086903,95853.0,95852.0,0.58311503]
[1739878530494,0.2086903,95853.0,95852.0,0.22231503]
[1739878530990,0.2086903,95853.0,95852.0,0.22131503]
[1739878531192,0.2086903,95853.0,95852.0,0.22231503]
[1739878534391,0.2086903,95853.0,95852.0,0.01362253]
[1739878554201,0.2086903,95853.0,95852.0,0.19652269]
[1739878554598,0.2086831,95857.0,95856.0,0.2086833]
[1739878563500,0.00015649,95862.0,95861.0,0.2086729]
[1739878563702,0.00015649,95862.0,95861.0,0.54860562]
[1739878563901,0.01467285,95880.0,95872.0,0.2086476]
[1739878564101,0.2086424,95876.0,95873.0,0.1034]
[1739878564406,0.2086446,95875.0,95873.0,0.1034]
[1739878564611,0.2086446,95875.0,95874.0,0.2086446]
[1739878565700,0.3608,95878.0,95875.0,0.2086419]
[1739878567008,0.5694369,95878.0,95875.0,0.2096419]
[1739878568004,0.5694369,95878.0,95875.0,0.22424266]
[1739878568307,0.5694369,95878.0,95875.0,0.22524266]
[1739878568608,0.3608,95878.0,95875.0,0.22524266]
[1739878570112,0.20456543,95878.0,95875.0,0.22524266]
[1739878570719,0.41320263,95878.0,95875.0,0.22524266]
[1739878571606,0.41320263,95878.0,95875.0,0.01660076]
[1739878571816,0.20456543,95878.0,95877.0,0.2086381]
[1739878572816,0.20456543,95878.0,95877.0,0.2096381]
[1739878573307,0.20456543,95878.0,95877.0,0.2106381]
[1739878574108,0.2086347,95879.0,95877.0,0.002]
[1739878574307,0.2086347,95879.0,95878.0,0.2086359]
[1739878575814,0.2086347,95879.0,95878.0,0.2096359]
[1739878576217,0.2086347,95879.0,95878.0,0.2106359]
[1739878576713,0.2086347,95879.0,95878.0,0.18957232]
[1739878582916,0.2086347,95879.0,95878.0,0.17061509]
[1739878590223,0.0658,95887.0,95878.0,0.002]
[1739878590420,0.2086296,95883.0,95882.0,0.16054503]
[1739878591212,0.2086337,95879.0,95878.0,0.2106344]
[1739878592017,0.2086337,95879.0,95878.0,0.2096344]
[1739878592209,0.2086337,95879.0,95878.0,0.2086344]
[1739878592614,0.2086337,95879.0,95878.0,0.2096344]
[1739878593722,0.2086337,95879.0,95878.0,0.2106344]
[1739878595532,0.2086337,95879.0,95878.0,0.002]
[1739878596520,0.2086599,95867.0,95866.0,0.0361]
[1739878597718,0.2086599,95867.0,95866.0,0.05089612]
[1739878599523,0.3608,95871.0,95866.0,0.05089612]
[1739878599722,0.3608,95871.0,95870.0,0.2086533]
[1739878600323,0.5694512,95871.0,95870.0,0.2086533]
[1739878600819,0.5724512,95871.0,95870.0,0.2086533]
[1739878601326,0.2116512,95871.0,95870.0,0.2086533]
[1739878601628,0.2116512,95871.0,95870.0,0.2096533]
[1739878604521,0.2116512,95871.0,95870.0,0.18359836]
[1739878605520,0.2116512,95871.0,95870.0,0.001]
[1739878611734,0.2106512,95871.0,95870.0,0.001]
[1739878612036,0.2116512,95871.0,95870.0,0.001]
[1739878612833,0.001,95871.0,95866.0,0.05089612]
[1739878613036,0.2086599,95867.0,95866.0,0.05089612]
[1739878613432,0.2086599,95867.0,95866.0,0.08429612]
[1739878614529,0.2106599,95867.0,95866.0,0.08429612]
[1739878617827,0.2106599,95867.0,95866.0,0.11799612]
[1739878620144,0.2106599,95867.0,95866.0,0.10619651]
[1739878620345,0.002,95867.0,95866.0,0.10619651]
[1739878621444,0.2106599,95867.0,95866.0,0.10619651]
[1739878623246,0.2096599,95867.0,95866.0,0.10619651]
[1739878623432,0.2106599,95867.0,95866.0,0.10619651]
[1739878623637,0.2096599,95867.0,95866.0,0.10619651]
[1739878623836,0.2106599,95867.0,95866.0,0.10619651]
[1739878626352,0.2106599,95867.0,95866.0,0.0337]
[1739878626746,0.208662,95866.0,95865.0,0.01434309]
[1739878627950,0.209662,95866.0,95865.0,0.01434309]
[1739878628654,0.002,95866.0,95865.0,0.01434309]
[1739878628954,0.2106823,95866.0,95865.0,0.01434309]
[1739878629854,0.2096823,95866.0,95865.0,0.01434309]
[1739878630153,0.5714823,95866.0,95865.0,0.01434309]
[1739878630343,0.2087134,95852.0,95851.0,0.0325]
[1739878630550,0.2087134,95852.0,95851.0,0.07998992]
[1739878630855,0.2087134,95852.0,95851.0,0.04748992]
[1739878631247,0.2087134,95852.0,95851.0,0.01388992]
[1739878631453,0.0315,95857.0,95840.0,0.16582424]
[1739878631454,0.2087243,95847.0,95842.0,0.00015649]
[1739878631648,0.5695243,95847.0,95846.0,0.01541265]
[1739878632555,0.208733,95843.0,95841.0,0.02441981]
[1739878632753,0.0315,95842.0,95841.0,0.02441981]
[1739878633749,0.0315,95842.0,95841.0,0.04255469]
[1739878633942,0.0315,95842.0,95841.0,0.01813488]
[1739878635956,0.0315,95842.0,95841.0,0.02313488]
[1739878638551,0.2402352,95842.0,95841.0,0.02313488]
[1739878638746,0.2402352,95842.0,95841.0,0.009]
[1739878639249,0.2402352,95842.0,95840.0,0.16582424]
[1739878639250,0.2087373,95841.0,95840.0,0.13354621]
[1739878639453,0.2430373,95841.0,95840.0,0.13354621]
[1739878639650,0.2430373,95841.0,95840.0,0.11606379]
[1739878640259,0.2430373,95841.0,95840.0,0.10220574]
[1739878640849,0.0343,95841.0,95837.0,0.01428092]
[1739878641048,0.0326,95840.0,95833.0,0.0341]
[1739878641250,0.5695526,95834.0,95833.0,0.0341]
[1739878642554,0.2087548,95833.0,95832.0,0.00015649]
[1739878642853,0.2087744,95824.0,95823.0,0.0335]
[1739878643449,0.3089744,95824.0,95823.0,0.0335]
[1739878643650,0.1002,95824.0,95821.0,0.01543866]
[1739878643850,0.1002,95824.0,95815.0,0.0335]
[1739878644055,0.5695918,95816.0,95815.0,0.0335]
[1739878646157,0.5705918,95816.0,95815.0,0.0335]
[1739878646462,0.5715918,95816.0,95815.0,0.0335]
[1739878657862,0.002,95816.0,95815.0,0.603094]
[1739878658970,0.3608,95828.0,95827.0,0.2087678]
[1739878660370,0.3658,95828.0,95827.0,0.2087678]
[1739878660675,0.3708,95828.0,95827.0,0.2087678]
[1739878660975,0.3708,95828.0,95827.0,0.3820678]
[1739878661162,0.3708,95828.0,95827.0,0.2087678]
[1739878663956,0.2087831,95820.0,95819.0,0.2422845]
[1739878665163,0.3608,95821.0,95820.0,0.2087831]
[1739878665874,0.5695809,95821.0,95820.0,0.2087831]
[1739878667174,0.3608,95821.0,95820.0,0.2087831]
[1739878667369,0.003,95821.0,95820.0,0.2087831]
[1739878668876,0.006,95821.0,95820.0,0.2087831]
[1739878670573,0.003,95821.0,95820.0,0.2087831]
[1739878670776,0.006,95821.0,95820.0,0.2087831]
[1739878670983,0.006,95821.0,95820.0,0.3820831]
[1739878673567,0.003,95821.0,95820.0,0.3860831]
[1739878673768,0.2087661,95828.0,95827.0,0.2087657]
[1739878675969,0.2097661,95828.0,95827.0,0.2087657]
[1739878676169,0.2097661,95828.0,95827.0,0.2097657]
[1739878676673,0.2117661,95828.0,95827.0,0.2097657]
[1739878676874,0.2117661,95828.0,95827.0,0.2087657]
[1739878677177,0.2157661,95828.0,95827.0,0.2087657]
[1739878679380,0.2117661,95828.0,95827.0,0.2087657]
[1739878679576,0.2157661,95828.0,95827.0,0.2087657]
[1739878680167,0.2117661,95828.0,95827.0,0.2087657]
[1739878680380,0.007,95828.0,95827.0,0.2087657]
[1739878681174,0.008,95828.0,95827.0,0.2087657]
[1739878682687,0.007,95828.0,95827.0,0.2087657]
[1739878683180,0.2087641,95829.0,95819.0,0.3943]
[1739878683370,0.009,95828.0,95819.0,0.3943]
[1739878683576,0.2177657,95828.0,95827.0,0.2087678]
[1739878683875,0.2167657,95828.0,95827.0,0.2087678]
[1739878684079,0.2117657,95828.0,95827.0,0.2087678]
[1739878684282,0.2157657,95828.0,95827.0,0.2087678]
[1739878684876,0.003,95828.0,95815.0,0.0335]
[1739878685078,0.003,95828.0,95820.0,0.2087831]
[1739878685079,0.3608,95821.0,95820.0,0.2087831]
[1739878685591,0.4592,95821.0,95820.0,0.2087831]
[1739878686484,0.4622,95821.0,95820.0,0.2087831]
[1739878687484,0.4652,95821.0,95820.0,0.2087831]
[1739878687981,0.0722,95821.0,95820.0,0.2087831]
[1739878688186,0.0379,95821.0,95820.0,0.2087831]
[1739878689688,0.0349,95821.0,95820.0,0.2087831]
[1739878689884,0.0319,95821.0,95820.0,0.2127831]
[1739878690090,0.0339,95821.0,95820.0,0.2127831]
[1739878690590,0.0339,95821.0,95820.0,0.2097831]
[1739878690591,0.0319,95821.0,95820.0,0.2097831]
[1739878691389,0.2406809,95821.0,95820.0,0.2097831]
[1739878692298,0.2426809,95821.0,95820.0,0.2097831]
[1739878693096,0.2446809,95821.0,95820.0,0.2087831]
[1739878693295,0.2456809,95821.0,95820.0,0.2087831]
[1739878693884,0.2436809,95821.0,95820.0,0.2087831]
[1739878694090,0.0379,95821.0,95820.0,0.2087831]
[1739878694293,0.2466809,95821.0,95820.0,0.2087831]
[1739878694999,0.0379,95821.0,95820.0,0.2087831]
[1739878695802,0.0349,95821.0,95820.0,0.2087831]
[1739878696004,0.0379,95821.0,95820.0,0.2087831]
[1739878696607,0.16099738,95824.0,95823.0,0.2087766]
[1739878697908,0.36136001,95825.0,95824.0,0.2087744]
[1739878698097,0.3608,95825.0,95824.0,0.2087744]
[1739878699198,0.3628,95825.0,95824.0,0.2087744]
[1739878699707,0.3648,95825.0,95824.0,0.2087744]
[1739878704208,0.5735722,95825.0,95824.0,0.2087744]
[1739878704612,0.2127722,95825.0,95824.0,0.2087744]
[1739878704813,0.2107722,95825.0,95824.0,0.2087744]
[1739878705213,0.2087722,95825.0,95824.0,0.2087744]
[1739878705413,0.2097722,95825.0,95824.0,0.2087744]
[1739878705912,0.2107722,95825.0,95824.0,0.2087744]
[1739878706416,0.2117722,95825.0,95824.0,0.2087744]
[1739878706606,0.2107722,95825.0,95824.0,0.2087744]
[1739878706814,0.2127722,95825.0,95824.0,0.2087744]
[1739878707809,0.2107722,95825.0,95824.0,0.2087744]
[1739878708109,0.2117722,95825.0,95824.0,0.2087744]
[1739878708509,0.5745722,95825.0,95824.0,0.2087744]
[1739878708905,0.5715722,95825.0,95824.0,0.2087744]
[1739878709111,0.5745722,95825.0,95824.0,0.2087744]
[1739878709313,0.2087814,95821.0,95820.0,0.2087788]
[1739878712019,0.2107814,95821.0,95820.0,0.2087788]
[1739878712421,0.2127814,95821.0,95820.0,0.2087788]
[1739878713522,0.2127814,95821.0,95816.0,0.0332]
[1739878713523,0.2087896,95817.0,95816.0,0.2419899]
[1739878713712,0.5695896,95817.0,95816.0,0.2087899]
[1739878713907,0.2087896,95817.0,95816.0,0.2087899]
[1739878715023,0.2097896,95817.0,95816.0,0.2087899]
[1739878715214,0.2107896,95817.0,95816.0,0.2087899]
[1739878715818,0.2087918,95816.0,95815.0,0.06365001]
[1739878717218,0.2097918,95816.0,95815.0,0.06365001]
[1739878717620,0.2107918,95816.0,95815.0,0.03015001]
[1739878720219,0.2107918,95816.0,95815.0,0.23894401]
[1739878723922,0.2107918,95816.0,95815.0,0.03015001]
[1739878728531,0.5715918,95816.0,95815.0,0.03015001]
[1739878730125,0.5715918,95816.0,95815.0,0.23894401]
[1739878731030,0.5715918,95816.0,95815.0,0.03015001]
[1739878735832,0.5715918,95816.0,95815.0,0.23894401]
[1739878743444,0.3628,95816.0,95815.0,0.23894401]
[1739878747447,0.002,95816.0,95815.0,0.23894401]
[1739878749248,0.002,95816.0,95815.0,0.208794]
[1739878749548,0.002,95816.0,95815.0,0.15402931]
[1739878750955,0.208794,95815.0,95814.0,0.20895169]
[1739878751245,0.602894,95815.0,95814.0,0.00015649]
[1739878751646,0.208831,95798.0,95797.0,0.2437311]
[1739878751950,0.208831,95798.0,95797.0,0.26016575]
[1739878752135,0.2088218,95803.0,95802.0,0.2088223]
[1739878752340,0.2423218,95803.0,95802.0,0.18794008]
[1739878753357,0.2423218,95803.0,95802.0,0.08994227]
[1739878753555,0.2423218,95803.0,95802.0,0.09394227]
[1739878753742,0.2423218,95803.0,95802.0,0.09694227]
[1739878754350,0.2423218,95803.0,95802.0,0.007]
[1739878754848,0.2423218,95803.0,95802.0,0.2158223]
[1739878757756,0.2088218,95803.0,95802.0,0.2158223]
[1739878760252,0.569618,95804.0,95803.0,0.2088201]
[1739878762357,0.569618,95804.0,95803.0,0.2158201]
[1739878773469,0.569618,95804.0,95803.0,0.007]
[1739878774568,0.569618,95804.0,95803.0,0.2158201]
[1739878776168,0.3608,95804.0,95803.0,0.2158201]
[1739878776461,0.569618,95804.0,95803.0,0.2158201]
[1739878776866,0.3608,95804.0,95803.0,0.2158201]
[1739878777069,0.569618,95804.0,95803.0,0.2158201]
[1739878778465,0.3608,95804.0,95803.0,0.2158201]
[1739878782774,0.569618,95804.0,95803.0,0.2158201]
[1739878790880,0.3608,95804.0,95803.0,0.2158201]
[1739878791076,0.569618,95804.0,95803.0,0.2158201]
[1739878800372,0.39884688,95804.0,95803.0,0.2158201]
[1739878806786,0.19002888,95804.0,95803.0,0.2158201]
[1739878807287,0.39884688,95804.0,95803.0,0.2158201]
[1739878808880,0.208818,95804.0,95803.0,0.2158201]
[1739878810875,0.0343,95811.0,95803.0,0.007]
[1739878811076,0.0343,95811.0,95805.0,0.3608]
[1739878811380,0.0343,95811.0,95810.0,0.12388031]
[1739878811381,0.2431027,95811.0,95810.0,0.12388031]
[1739878812100,0.0343,95811.0,95810.0,0.12388031]
[1739878812687,0.0343,95811.0,95810.0,0.12488031]
[1739878813279,0.2431027,95811.0,95810.0,0.12488031]
[1739878813488,0.2431027,95811.0,95810.0,0.12588031]
[1739878815890,0.0343,95811.0,95810.0,0.12588031]
[1739878816592,0.00015658,95812.0,95811.0,0.2088027]
[1739878816787,0.00015658,95812.0,95811.0,0.2397027]
[1739878817389,0.00015658,95812.0,95811.0,0.15478127]
[1739878818091,0.00015658,95812.0,95811.0,0.13061101]
[1739878818985,0.00015658,95812.0,95811.0,0.13161101]
[1739878822794,0.20895708,95812.0,95811.0,0.13161101]
[1739878826298,0.20895708,95812.0,95811.0,0.13061101]
[1739878826499,0.20895708,95812.0,95811.0,0.13261101]
[1739878827905,0.20895708,95812.0,95811.0,0.13361101]
[1739878828203,0.20895708,95812.0,95811.0,0.13161101]
[1739878843407,0.56975708,95812.0,95811.0,0.001]
[1739878843607,0.36095658,95812.0,95798.0,0.3608]
[1739878843802,0.2088289,95799.0,95798.0,0.3608]
[1739878844300,0.2088289,95799.0,95793.0,0.00015658]
[1739878844502,0.3608,95804.0,95793.0,0.00015658]
[1739878844503,0.2088398,95794.0,95793.0,0.00015658]
[1739878844903,0.2038398,95794.0,95793.0,0.00015658]
[1739878845508,0.1928398,95794.0,95793.0,0.00015658]
[1739878846002,0.1928398,95794.0,95793.0,0.00615658]
[1739878846207,0.1928398,95794.0,95793.0,0.02135422]
[1739878847611,0.0333,95797.0,95793.0,0.02135422]
[1739878848314,0.001,95794.0,95793.0,0.23719612]
[1739878848904,0.001,95797.0,95793.0,0.02835422]
[1739878849317,0.002,95797.0,95796.0,0.2088354]
[1739878849716,0.001,95797.0,95796.0,0.2088354]
[1739878850409,0.2088292,95799.0,95796.0,0.2088354]
[1739878850610,0.2088292,95799.0,95797.0,0.2088331]
[1739878850806,0.2088292,95799.0,95798.0,0.0305]
[1739878852214,0.2088332,95797.0,95796.0,0.003]
[1739878853120,0.2078332,95797.0,95796.0,0.002]
[1739878853614,0.2088391,95795.0,95793.0,0.01535422]
[1739878853821,0.208827,95800.0,95797.0,0.2088314]
[1739878854021,0.208827,95800.0,95799.0,0.2088289]
[1739878855419,0.208827,95800.0,95799.0,0.2168289]
[1739878856425,0.208827,95800.0,95799.0,0.2481289]
[1739878860224,0.208827,95800.0,95799.0,0.2471289]
[1739878860613,0.208827,95800.0,95799.0,0.0393]
[1739878865927,0.208827,95800.0,95799.0,0.2481289]
[1739878871527,0.208827,95800.0,95799.0,0.0393]
[1739878872420,0.2088398,95794.0,95793.0,0.01535422]
[1739878873528,0.2108398,95794.0,95793.0,0.02235422]
[1739878874027,0.2108398,95794.0,95793.0,0.0201188]
[1739878875325,0.2098398,95794.0,95793.0,0.0131188]
[1739878875532,0.2098398,95794.0,95793.0,0.002]
[1739878875728,0.3113598,95794.0,95793.0,0.002]
[1739878876333,0.3113598,95794.0,95793.0,0.01610292]
[1739878876628,0.2098398,95794.0,95793.0,0.01610292]
[1739878878519,0.2088507,95789.0,95788.0,0.54603554]
[1739878878723,0.2088507,95789.0,95788.0,0.54535554]
[1739878879126,0.2088507,95789.0,95788.0,0.35068043]
[1739878879824,0.2098507,95789.0,95788.0,0.35068043]
[1739878880025,0.2108507,95789.0,95788.0,0.35268043]
[1739878881733,0.2108507,95789.0,95788.0,0.56153323]
[1739878882536,0.2108507,95789.0,95788.0,0.22503029]
[1739878882933,0.2108507,95789.0,95788.0,0.01617749]
[1739878884537,0.2108507,95789.0,95788.0,0.002]
[1739878884831,0.2108507,95789.0,95788.0,0.01603862]
[1739878885037,0.2108507,95789.0,95788.0,0.002]
[1739878886430,0.5716507,95789.0,95788.0,0.002]
[1739878886937,0.5716507,95789.0,95788.0,0.01601892]
[1739878887138,0.5706507,95789.0,95788.0,0.01401892]
[1739878887336,0.2088594,95785.0,95784.0,0.00015658]
[1739878888632,0.2098594,95785.0,95784.0,0.00015658]
[1739878888935,0.2108594,95785.0,95784.0,0.01422898]
[1739878889135,0.2108594,95785.0,95784.0,0.00015658]
[1739878890726,0.2108594,95785.0,95784.0,0.01456812]
[1739878891727,0.2098594,95785.0,95784.0,0.01456812]
[1739878892635,0.21516686,95785.0,95784.0,0.01456812]
[1739878893431,0.00630746,95785.0,95766.0,0.208899]
[1739878893636,0.2088943,95769.0,95766.0,0.208899]
[1739878894440,0.2088943,95769.0,95768.0,0.01372317]
[1739878894648,0.0648,95774.0,95759.0,0.06884736]
[1739878894936,0.2089052,95764.0,95762.0,0.2089086]
[1739878895131,0.2089052,95764.0,95763.0,0.02571434]
[1739878895333,0.2089052,95764.0,95763.0,0.0115]
[1739878895533,0.2089052,95764.0,95763.0,0.02571153]
[1739878896730,0.2089052,95764.0,95763.0,0.23461893]
[1739878899334,0.0648,95774.0,95763.0,0.02571153]
[1739878899642,0.2088964,95769.0,95768.0,0.208896]
[1739878900033,0.0648,95774.0,95768.0,0.208896]
[1739878900234,0.2088921,95770.0,95769.0,0.0621]
[1739878900435,0.2088921,95770.0,95769.0,0.0926]
[1739878907044,0.2088921,95770.0,95769.0,0.0621]
[1739878907350,0.2088921,95770.0,95769.0,0.0318]
[1739878909141,0.2089052,95764.0,95763.0,0.02571153]
[1739878913648,0.2088988,95769.0,95768.0,0.2088925]
[1739878914550,0.2088988,95769.0,95766.0,0.0322]
[1739878914551,0.0331,95774.0,95773.0,0.2088855]
[1739878914750,0.0301,95784.0,95777.0,0.2088768]
[1739878914947,0.20903118,95778.0,95777.0,0.2088768]
[1739878915750,0.21203118,95778.0,95777.0,0.2088768]
[1739878916358,0.21503118,95778.0,95777.0,0.2088768]
[1739878917559,0.00615658,95778.0,95771.0,0.208888]
[1739878917750,0.031,95777.0,95765.0,0.3608]
[1739878917950,0.0316,95776.0,95769.0,0.2088935]